bitfinex/quotes_SOLUSD_20241202
["timestamp","ask_amount","ask_price","bid_price","bid_amount"]
[1733116695421,30.0,230.17,230.16,35.09283622]
[1733116696446,7.8777,230.28,230.16,80.3566451]
[1733116696631,7.8777,230.28,230.22,11.31595222]
[1733116696835,30.0,230.23,230.22,35.09283622]
[1733116697339,7.8777,230.28,230.22,35.09283622]
[1733116697544,7.8777,230.28,230.23,23.776884]
[1733116704648,19.0341,230.29,230.23,23.776884]
[1733116704842,19.0341,230.29,230.25,23.776884]
[1733116705947,20.0,230.3,230.25,23.776884]
[1733116706355,8.3133,230.33,230.25,23.776884]
[1733116707935,8.3133,230.33,230.19,0.86623252]
[1733116708128,20.0,230.3,230.16,0.8663813]
[1733116708333,30.0,230.24,230.13,0.86647279]
[1733116708636,30.0,230.24,230.13,12.18242501]
[1733116709039,30.0,230.24,230.14,11.31595222]
[1733116709246,30.0,230.24,230.11,28.2279]
[1733116709247,30.0,230.24,230.15,12.1825117]
[1733116709643,30.0,230.24,230.15,0.86655948]
[1733116709844,19.2873,230.25,230.15,12.1825117]
[1733116710156,30.0,230.23,230.15,12.1825117]
[1733116710855,30.0,230.23,230.19,11.31595222]
[1733116711061,30.0,230.23,230.2,23.776884]
[1733116711253,18.786,230.31,230.22,23.776884]
[1733116711458,18.786,230.31,230.23,11.31595222]
[1733116711754,18.786,230.31,230.25,23.776884]
[1733116712455,7.7072,230.39,230.27,23.776884]
[1733116712842,30.0,230.28,230.27,23.776884]
[1733116713958,30.0,230.28,230.19,7.35386595]
[1733116713959,30.0,230.28,230.22,0.86621174]
[1733116714141,30.0,230.28,230.2,35.09283622]
[1733116714344,30.0,230.28,230.22,35.09283622]
[1733116714561,30.0,230.28,230.24,23.776884]
[1733116715159,30.0,230.28,230.2,35.09283622]
[1733116715464,30.0,230.28,230.22,23.776884]
[1733116716338,30.0,230.28,230.22,35.09283622]
[1733116716540,30.0,230.28,230.22,24.64318559]
[1733116716962,30.0,230.28,230.2,23.776884]
[1733116717134,30.0,230.28,230.22,23.776884]
[1733116717768,30.0,230.28,230.22,24.64324507]
[1733116717954,28.98101629,230.28,230.22,24.64324507]
[1733116718153,28.98101629,230.28,230.24,23.776884]
[1733116722867,28.98101629,230.28,230.25,11.31595222]
[1733116723170,28.98101629,230.28,230.26,23.776884]
[1733116724553,28.98101629,230.28,230.25,35.09283622]
[1733116724760,28.98101629,230.28,230.26,23.776884]
[1733116726750,28.98101629,230.28,230.24,23.776884]
[1733116727064,28.98101629,230.28,230.23,23.776884]
[1733116727780,28.98101629,230.28,230.21,23.776884]
[1733116727957,28.98101629,230.28,230.2,23.776884]
[1733116728164,28.98101629,230.28,230.19,0.86637238]
[1733116728165,28.98101629,230.28,230.19,11.31595222]
[1733116728974,28.98101629,230.28,230.18,11.31595222]
[1733116729180,28.98101629,230.28,230.16,0.86640216]
[1733116729350,8.0909,230.27,230.15,0.86649915]
[1733116729551,30.0,230.25,230.14,11.31595222]
[1733116729966,30.0,230.25,230.15,0.86657947]
[1733116730162,30.0,230.25,230.15,12.18253169]
[1733116731250,30.0,230.25,230.12,0.86655335]
[1733116731480,20.0,230.22,230.13,23.776884]
[1733116731680,30.0,230.2,230.13,23.776884]
[1733116734586,30.0,230.2,230.11,23.776884]
[1733116734963,30.0,230.2,230.13,23.776884]
[1733116736682,30.0,230.2,230.12,35.09283622]
[1733116736992,30.0,230.2,230.12,23.776884]
[1733116737777,30.0,230.2,230.12,35.09283622]
[1733116737958,30.0,230.2,230.12,35.95951818]
[1733116738158,30.0,230.2,230.12,35.09283622]
[1733116738683,30.0,230.2,230.12,23.776884]
[1733116739358,20.6841,230.19,230.12,23.776884]
[1733116739578,30.0,230.18,230.12,23.776884]
[1733116740183,30.0,230.18,230.13,11.31595222]
[1733116740366,30.0,230.18,230.17,11.31595222]
[1733116740680,20.4198,230.24,230.18,23.776884]
[1733116742185,30.0,230.19,230.18,23.776884]
[1733116742352,30.0,230.19,230.17,23.776884]
[1733116742755,30.0,230.19,230.16,23.776884]
[1733116743285,30.0,230.19,230.18,35.09283622]
[1733116743463,30.0,230.19,230.18,11.31595222]
[1733116743658,30.0,230.19,230.18,23.776884]
[1733116743880,30.0,230.19,230.18,35.09283622]
[1733116744382,20.4198,230.24,230.18,35.09283622]
[1733116744557,20.4198,230.24,230.21,23.776884]
[1733116746576,19.6886,230.29,230.21,35.09283622]
[1733116746974,19.6886,230.29,230.23,23.776884]
[1733116747470,30.0,230.24,230.23,23.776884]
[1733116747671,30.0,230.24,230.23,35.09283622]
[1733116748479,30.0,230.24,230.22,23.776884]
[1733116748802,19.6886,230.29,230.22,23.776884]
[1733116748803,19.6886,230.29,230.22,35.09283622]
[1733116749875,30.0,230.23,230.22,23.776884]
[1733116750589,30.0,230.23,230.22,35.09283622]
[1733116751597,30.0,230.23,230.21,35.09283622]
[1733116751891,30.0,230.23,230.22,35.09283622]
[1733116753291,30.0,230.23,230.22,11.31595222]
[1733116753605,30.0,230.23,230.22,23.776884]
[1733116753974,30.0,230.23,230.22,35.09283622]
[1733116755302,30.0,230.23,230.22,105.95915072]
[1733116755506,19.3893,230.35,230.24,0.12549]
[1733116755677,19.3893,230.35,230.31,23.776884]
[1733116756199,8.1451,230.38,230.31,35.95883838]
[1733116756493,20.1992,230.41,230.32,81.31595222]
[1733116756696,20.1992,230.41,230.33,35.95867139]
[1733116756902,20.1992,230.41,230.33,23.776884]
[1733116757200,20.1992,230.41,230.31,23.776884]
[1733116757574,20.1992,230.41,230.28,23.776884]
[1733116757798,20.1992,230.41,230.27,23.776884]
[1733116758782,20.0,230.38,230.27,23.776884]
[1733116758983,30.0,230.32,230.27,23.776884]
[1733116759200,30.0,230.32,230.27,35.09283622]
[1733116759493,30.0,230.32,230.29,23.776884]
[1733116760598,30.0,230.32,230.31,35.09283622]
[1733116761101,30.0,230.32,230.3,23.776884]
[1733116761477,30.0,230.32,230.28,23.776884]
[1733116761685,30.0,230.32,230.28,35.09283622]
[1733116762996,30.0,230.32,230.29,11.31595222]
[1733116763180,30.0,230.32,230.31,35.09283622]
[1733116763383,30.0,230.32,230.31,11.31595222]
[1733116763596,20.1992,230.41,230.3,11.31595222]
[1733116764127,20.1992,230.41,230.29,11.31595222]
[1733116764300,20.1992,230.41,230.3,11.31595222]
[1733116765681,20.1992,230.41,230.31,23.776884]
[1733116766488,20.0,230.38,230.31,23.776884]
[1733116766801,30.0,230.32,230.31,23.776884]
[1733116767177,30.0,230.32,230.29,35.09283622]
[1733116768706,30.0,230.32,230.31,35.09283622]
[1733116769281,30.0,230.32,230.31,23.776884]
[1733116770309,30.0,230.32,230.29,35.09283622]
[1733116770601,30.0,230.32,230.28,23.776884]
[1733116770901,30.0,230.32,230.3,11.31595222]
[1733116771299,30.0,230.32,230.31,23.776884]
[1733116771620,30.0,230.32,230.29,11.31595222]
[1733116771788,30.0,230.32,230.3,23.776884]
[1733116772105,30.0,230.32,230.3,11.31595222]
[1733116772303,30.0,230.32,230.31,23.776884]
[1733116773900,30.0,230.32,230.31,35.09283622]
[1733116775285,20.1992,230.41,230.31,35.09283622]
[1733116775484,20.1992,230.41,230.34,11.31595222]
[1733116775694,20.1992,230.41,230.35,23.776884]
[1733116776705,20.1992,230.41,230.35,35.09283622]
[1733116776881,20.1992,230.41,230.36,11.31595222]
[1733116777314,20.1992,230.41,230.37,23.776884]
[1733116777892,20.1992,230.41,230.37,35.09283622]
[1733116778190,20.0,230.5,230.38,23.776884]
[1733116778701,20.0,230.5,230.36,11.31595222]
[1733116779208,20.0,230.5,230.37,23.776884]
[1733116780310,20.0,230.5,230.37,11.31595222]
[1733116780517,20.0,230.5,230.38,23.776884]
[1733116781189,20.0,230.5,230.37,23.776884]
[1733116781704,20.0,230.46,230.36,23.776884]
[1733116783511,20.0,230.46,230.35,35.09283622]
[1733116784609,27.9598,230.46,230.35,23.776884]
[1733116786653,20.0,230.42,230.35,23.776884]
[1733116786821,20.0,230.42,230.34,11.31595222]
[1733116786992,20.0,230.42,230.35,23.776884]
[1733116787697,20.7133,230.45,230.35,23.776884]
[1733116787990,20.7133,230.45,230.36,23.776884]
[1733116788204,20.7133,230.45,230.35,11.31595222]
[1733116788205,20.7133,230.45,230.38,23.776884]
[1733116788386,20.7133,230.45,230.38,35.09283622]
[1733116788591,20.7133,230.45,230.4,23.776884]
[1733116789321,20.7133,230.45,230.42,23.776884]
[1733116790213,20.8484,230.51,230.43,11.31595222]
[1733116790392,20.8484,230.51,230.44,23.776884]
[1733116790806,20.8484,230.51,230.44,11.31595222]
[1733116791313,20.8484,230.51,230.44,23.776884]
[1733116791717,20.8484,230.51,230.46,23.776884]
[1733116791893,20.8484,230.51,230.47,11.31595222]
[1733116792100,20.402,230.56,230.49,23.776884]
[1733116794813,20.402,230.56,230.49,35.09283622]
[1733116795030,20.402,230.56,230.51,23.776884]
[1733116795316,20.0,230.59,230.51,23.776884]
[1733116795528,20.0,230.58,230.51,23.776884]
[1733116796399,20.0,230.58,230.48,11.31595222]
[1733116796400,20.0,230.58,230.49,23.776884]
[1733116798633,20.0,230.58,230.47,23.776884]
[1733116799131,20.0,230.58,230.45,23.776884]
[1733116799625,20.0,230.58,230.44,23.776884]
[1733116799831,20.0,230.58,230.41,12.18143406]
[1733116800007,20.1555,230.57,230.41,12.18143406]
[1733116800321,20.0,230.54,230.41,12.18143406]
[1733116801144,20.0,230.54,230.42,11.31595222]
[1733116801306,20.0,230.54,230.42,35.09283622]
[1733116801830,28.3644,230.53,230.4,11.31595222]
[1733116802331,28.3644,230.53,230.41,11.31595222]
[1733116802902,20.0,230.5,230.34,8.3637]
[1733116803106,20.0,230.5,230.35,11.31595222]
[1733116803403,20.0,230.5,230.36,11.31595222]
[1733116804329,19.89774886,230.5,230.37,23.776884]
[1733116806037,19.89774886,230.5,230.35,23.776884]
[1733116806212,19.89774886,230.5,230.37,23.776884]
[1733116806905,19.89774886,230.5,230.38,11.31595222]
[1733116807110,19.89774886,230.5,230.37,11.31595222]
[1733116807327,19.89774886,230.5,230.38,23.776884]
[1733116809033,19.3536,230.49,230.38,23.776884]
[1733116809346,20.0,230.46,230.37,23.776884]
[1733116809711,20.0,230.46,230.37,11.31595222]
[1733116810116,20.0,230.46,230.38,23.776884]
[1733116810832,20.0,230.46,230.37,23.776884]
[1733116811017,8.2961,230.45,230.36,23.776884]
[1733116811224,20.0,230.42,230.35,23.776884]
[1733116811420,20.7168,230.41,230.31,11.31595222]
[1733116812723,19.71634168,230.41,230.32,23.776884]
[1733116813116,19.71634168,230.41,230.3,11.31595222]
[1733116813924,20.0,230.38,230.25,0.86608284]
[1733116814147,20.0,230.38,230.27,11.31595222]
[1733116814637,20.0,230.38,230.28,11.31595222]
[1733116815341,20.0,230.38,230.29,23.776884]
[1733116815720,20.0,230.38,230.29,11.31595222]
[1733116816034,20.0,230.38,230.32,11.31595222]
[1733116816538,20.0,230.38,230.27,23.776884]
[1733116816721,20.0,230.38,230.29,23.776884]
[1733116817519,20.0,230.38,230.25,0.86602039]
[1733116817738,20.0,230.38,230.27,11.31595222]
[1733116817945,20.0,230.38,230.28,11.31595222]
[1733116819920,20.0,230.38,230.3,11.31595222]
[1733116820120,20.0,230.38,230.31,11.31595222]
[1733116820330,20.0,230.38,230.32,11.31595222]
[1733116820845,20.0,230.38,230.31,23.776884]
[1733116821017,20.0,230.38,230.31,11.31595222]
[1733116821431,20.0,230.38,230.29,23.776884]
[1733116822542,20.0,230.38,230.29,35.09283622]
[1733116822721,20.0,230.38,230.3,11.31595222]
[1733116822929,19.71634168,230.41,230.31,23.776884]
[1733116823331,20.0,230.38,230.31,23.776884]
[1733116823735,20.0,230.38,230.3,23.776884]
[1733116823944,20.0,230.38,230.28,11.31595222]
[1733116824177,20.0,230.38,230.24,70.9927529]
[1733116824178,20.0,230.38,230.29,35.09283622]
[1733116825048,20.0,230.38,230.28,35.09283622]
[1733116825540,20.0,230.38,230.28,23.776884]
[1733116826057,20.0,230.38,230.27,11.31595222]
[1733116826240,20.0,230.38,230.29,23.776884]
[1733116826735,20.0,230.38,230.28,23.776884]
[1733116827051,20.0,230.38,230.26,35.09283622]
[1733116828653,20.8296,230.36,230.26,23.776884]
[1733116828849,20.0,230.33,230.24,0.9927529]
[1733116829739,20.0,230.29,230.24,0.9927529]
[1733116831834,30.0,230.27,230.24,0.9927529]
[1733116832235,40.0333,230.25,230.24,0.9927529]
[1733116832954,70.0333,230.25,230.24,0.9927529]
[1733116835035,50.0333,230.25,230.24,0.9927529]
[1733116835740,30.0,230.25,230.24,36.08558912]
[1733116837970,19.8765,230.3,230.25,23.776884]
[1733116839447,19.8765,230.3,230.24,0.9927529]
[1733116839633,20.0,230.27,230.24,0.9927529]
[1733116840770,30.0,230.26,230.24,0.9927529]
[1733116843649,20.0,230.23,230.11,11.31595222]
[1733116843843,30.0,230.21,230.11,11.31595222]
[1733116844165,30.0,230.21,230.13,11.31595222]
[1733116844646,30.0,230.21,230.13,23.776884]
[1733116846464,20.0,230.18,230.07,0.86676043]
[1733116846702,50.0,230.17,230.11,23.776884]
[1733116846873,20.0,230.17,230.07,0.86676043]
[1733116847242,20.0,230.17,230.07,11.31595222]
[1733116848567,20.0,230.17,230.08,23.776884]
[1733116848736,20.0,230.17,230.08,11.31595222]
[1733116849355,30.0,230.16,230.08,11.31595222]
[1733116851559,30.0,230.16,230.07,24.64381062]
[1733116851754,30.0,230.16,230.08,11.31595222]
[1733116852574,20.0,230.14,230.13,2.0]
[1733116852745,50.0,230.14,230.13,2.0]
[1733116852947,30.0,230.14,230.13,2.0]
[1733116855270,59.0081,230.14,230.13,2.0]
[1733116855863,20.0,230.11,229.96,8.2549]
[1733116856054,20.0,230.06,229.97,11.31595222]
[1733116856378,20.0,230.06,229.94,0.86726345]
[1733116856573,20.3549,230.05,229.94,12.18329248]
[1733116856753,20.3549,230.05,229.95,11.31595222]
[1733116857077,30.0,230.02,229.95,11.31595222]
[1733116857648,30.0,230.02,229.95,40.00814101]
[1733116858674,30.0,230.02,230.01,40.00814101]
[1733116858974,30.0,230.02,230.01,126.36488802]
[1733116859758,19.738,230.18,230.01,126.36488802]
[1733116859759,19.738,230.18,230.06,23.776884]
[1733116859970,19.738,230.18,230.09,16.23125701]
[1733116860156,19.738,230.18,230.1,23.776884]
[1733116860676,8.2801,230.19,230.1,23.776884]
[1733116860677,8.3843,230.25,230.14,16.23125701]
[1733116860983,8.3843,230.25,230.16,16.23125701]
[1733116860984,19.7448,230.24,230.16,16.23125701]
[1733116861285,19.7448,230.24,230.16,40.00814101]
[1733116861472,19.7448,230.24,230.16,23.776884]
[1733116861713,19.7448,230.24,230.15,40.00814101]
[1733116862052,19.7448,230.24,230.17,23.776884]
[1733116862254,19.9114,230.36,230.23,16.23125701]
[1733116862561,19.9114,230.36,230.31,23.776884]
[1733116862767,7.9252,230.39,230.31,40.00814101]
[1733116863075,7.9252,230.39,230.31,23.776884]
[1733116863664,20.0,230.36,230.3,23.776884]
[1733116864264,20.0,230.36,230.3,40.00814101]
[1733116864881,20.0,230.36,230.3,23.776884]
[1733116865080,20.0,230.36,230.29,23.776884]
[1733116866064,20.0,230.36,230.29,40.00814101]
[1733116866259,20.0,230.36,230.3,16.23125701]
[1733116866484,20.0,230.36,230.31,23.776884]
[1733116866692,19.3594,230.48,230.36,23.776884]
[1733116866980,19.3594,230.48,230.4,16.23125701]
[1733116867183,19.3594,230.48,230.4,17.0969164]
[1733116867359,19.3594,230.48,230.41,16.23125701]
[1733116868679,19.3594,230.48,230.39,16.23125701]
[1733116868888,19.3594,230.48,230.38,23.776884]
[1733116869073,19.3594,230.48,230.38,40.00814101]
[1733116869277,19.3594,230.48,230.4,23.776884]
[1733116870363,19.3594,230.48,230.4,40.00814101]
[1733116870560,19.3594,230.48,230.4,40.87381641]
[1733116870902,19.3594,230.48,230.4,40.00814101]
[1733116871183,19.3594,230.48,230.4,23.776884]
[1733116871560,19.3594,230.48,230.35,0.86567832]
[1733116871561,19.3594,230.48,230.38,23.776884]
[1733116871760,19.3594,230.48,230.36,16.23125701]
[1733116871761,20.0,230.45,230.36,23.776884]
[1733116871987,20.0,230.45,230.35,23.776884]
[1733116872280,20.0,230.45,230.36,0.86585892]
[1733116872492,20.0,230.45,230.37,23.776884]
[1733116874079,20.0,230.45,230.4,16.23125701]
[1733116874281,19.3594,230.48,230.41,16.23125701]
[1733116874488,20.2549,230.54,230.44,16.23125701]
[1733116875091,20.2549,230.54,230.45,23.776884]
[1733116875388,20.2549,230.54,230.39,0.86554705]
[1733116875693,20.2549,230.54,230.42,23.776884]
[1733116875995,20.2549,230.54,230.4,23.776884]
[1733116876298,20.2549,230.54,230.4,40.00814101]
[1733116876495,20.2549,230.54,230.43,16.23125701]
[1733116876738,20.2549,230.54,230.45,40.00814101]
[1733116876869,20.2549,230.54,230.47,23.776884]
[1733116878405,20.5792,230.63,230.52,16.23125701]
[1733116878567,20.5792,230.63,230.54,23.776884]
[1733116878770,20.5792,230.63,230.54,24.64202846]
[1733116879081,20.5792,230.63,230.54,23.776884]
[1733116879284,20.5792,230.63,230.53,23.776884]
[1733116880163,20.0,230.6,230.53,23.776884]
[1733116880576,20.0,230.6,230.51,16.23125701]
[1733116880577,20.0,230.6,230.51,23.776884]
[1733116881494,20.0,230.6,230.46,16.23125701]
[1733116881886,20.0,230.6,230.47,16.23125701]
[1733116882401,20.0,230.6,230.46,16.23125701]
[1733116883094,20.0,230.59,230.46,16.23125701]
[1733116883298,20.0,230.6,230.46,16.23125701]
[1733116883792,20.0,230.6,230.45,40.00814101]
[1733116884597,20.0,230.6,230.45,23.776884]
[1733116884778,10.0,230.62,230.45,23.776884]
[1733116884779,20.0,230.59,230.45,23.776884]
[1733116884979,20.0,230.59,230.45,40.00814101]
[1733116885394,20.0,230.6,230.45,40.00814101]
[1733116885596,20.0,230.59,230.45,40.00814101]
[1733116885781,20.0,230.59,230.46,16.23125701]
[1733116885979,20.0,230.59,230.47,23.776884]
[1733116886592,28.0102,230.58,230.41,0.86552803]
[1733116886791,28.0102,230.58,230.36,16.23125701]
[1733116886792,20.0,230.55,230.36,16.23125701]
[1733116887098,20.0,230.55,230.37,16.23125701]
[1733116887299,20.0,230.55,230.38,17.09696529]
[1733116887498,20.0,230.55,230.39,16.23125701]
[1733116887700,20.0,230.53,230.38,16.23125701]
[1733116888003,21.0855,230.52,230.37,16.23125701]
[1733116888206,20.0,230.49,230.38,23.776884]
[1733116888406,20.0,230.49,230.35,17.09695793]
[1733116888587,7.9141,230.48,230.35,0.86570092]
[1733116888789,7.9141,230.48,230.35,17.09695793]
[1733116889103,20.0,230.45,230.35,0.86570092]
[1733116889408,20.0,230.45,230.34,16.23125701]
[1733116890715,20.0,230.45,230.35,23.776884]
[1733116892683,20.0,230.45,230.36,23.776884]
[1733116893585,20.0,230.41,230.31,16.23125701]
[1733116893793,20.0,230.41,230.32,23.776884]
[1733116894085,20.0,230.41,230.29,16.23125701]
[1733116894285,20.0,230.41,230.28,16.23125701]
[1733116894485,20.0,230.41,230.27,16.23125701]
[1733116895206,20.0,230.37,230.25,16.23125701]
[1733116895393,20.0,230.33,230.23,16.23125701]
[1733116895602,19.3677,230.36,230.29,16.23125701]
[1733116895793,19.3677,230.36,230.3,17.09733549]
[1733116896797,19.3677,230.36,230.3,0.86607848]
[1733116896994,19.3677,230.36,230.29,23.776884]
[1733116897817,19.3677,230.36,230.26,16.23125701]
[1733116897818,19.3677,230.36,230.26,23.776884]
[1733116898907,19.3677,230.36,230.25,23.776884]
[1733116899241,19.3677,230.36,230.24,23.776884]
[1733116899595,19.3677,230.36,230.21,16.23125701]
[1733116899596,19.3677,230.36,230.22,23.776884]
[1733116899795,19.3677,230.36,230.2,16.23125701]
[1733116900297,20.0,230.33,230.21,1.2706493]
[1733116900919,8.2793,230.32,230.21,1.2706493]
[1733116901097,8.2793,230.32,230.22,23.776884]
[1733116901299,8.2793,230.32,230.2,23.776884]
[1733116902000,20.0,230.29,230.16,0.86641591]
[1733116902225,20.4961,230.28,230.16,17.09767292]
[1733116902395,20.4961,230.28,230.15,16.23125701]
[1733116902917,20.4961,230.28,230.16,0.86659609]
[1733116903122,20.4961,230.28,230.16,17.0978531]
[1733116903822,20.4961,230.28,230.16,0.86659609]
[1733116905398,20.4961,230.28,230.16,17.0978531]
[1733116905721,20.4961,230.28,230.16,0.86659609]
[1733116905894,20.4961,230.28,230.16,23.776884]
[1733116908627,20.0,230.25,230.15,23.776884]
[1733116909229,20.0,230.25,230.13,23.776884]
[1733116910712,7.7866,230.24,230.13,23.776884]
[1733116911798,7.7866,230.24,230.19,16.23125701]
[1733116912001,7.7866,230.24,230.2,23.776884]
[1733116913200,21.0033,230.2,230.1,0.866649]
[1733116914110,21.0033,230.2,230.09,16.23125701]
[1733116914420,21.0033,230.2,230.08,16.23125701]
[1733116914618,21.0033,230.2,230.07,17.09804103]
[1733116914827,21.0033,230.2,230.08,16.23125701]
[1733116915207,21.0033,230.2,230.07,20.86689145]
[1733116915724,20.0,230.17,230.04,0.86692552]
[1733116916225,20.0,230.17,230.05,20.0]
[1733116917231,20.0,230.17,230.06,23.776884]
[1733116917720,20.0,230.17,230.06,40.00814101]
[1733116917921,21.0033,230.2,230.08,16.23125701]
[1733116918143,21.0033,230.2,230.09,17.09816498]
[1733116918330,21.0033,230.2,230.1,23.776884]
[1733116918801,21.0033,230.2,230.08,23.776884]
[1733116919002,21.0033,230.2,230.07,23.776884]
[1733116920403,30.0,230.14,230.07,23.776884]
[1733116920624,30.0,230.14,230.07,40.00814101]
[1733116920816,30.0,230.14,230.07,23.776884]
[1733116922331,30.0,230.14,230.1,40.00814101]
[1733116922536,30.0,230.14,230.12,40.00814101]
[1733116922830,30.0,230.14,230.1,23.776884]
[1733116923316,30.0,230.16,230.08,23.776884]
[1733116923507,30.0,230.16,230.06,20.0]
[1733116923708,30.0,230.16,230.04,0.86690321]
[1733116924119,8.065,230.15,230.02,33.62833501]
[1733116924322,20.6818,230.14,230.01,16.23125701]
[1733116924536,20.6818,230.14,230.03,16.23125701]
[1733116924837,30.0,230.12,230.03,16.23125701]
[1733116925629,30.0,230.12,230.04,23.776884]
[1733116926138,30.0,230.12,230.04,40.00814101]
[1733116926429,30.0,230.12,230.04,23.776884]
[1733116928732,30.0,230.12,230.04,40.00814101]
[1733116928928,30.0,230.12,230.05,16.23125701]
[1733116929336,30.0,230.12,230.06,23.776884]
[1733116932622,30.0,230.12,230.09,23.776884]
[1733116933433,30.0,230.12,230.11,16.23125701]
[1733116933622,30.0,230.12,230.11,40.00814101]
[1733116934347,30.0,230.12,230.11,42.14599657]
[1733116934545,20.0879,230.25,230.14,20.0]
[1733116934718,20.0879,230.25,230.18,16.23125701]
[1733116934920,20.0879,230.25,230.19,23.776884]
[1733116936941,20.0879,230.25,230.18,16.23125701]
[1733116936942,20.0879,230.25,230.16,23.776884]
[1733116937146,20.0879,230.25,230.14,16.23125701]
[1733116937147,20.0879,230.25,230.15,23.776884]
[1733116937624,20.0879,230.25,230.12,40.00814101]
[1733116938945,20.0879,230.25,230.13,17.09802542]
[1733116939247,20.0879,230.25,230.14,40.00814101]
[1733116940044,20.0879,230.25,230.17,40.00814101]
[1733116940438,20.0879,230.25,230.18,16.23125701]
[1733116940729,20.0879,230.25,230.19,40.87463885]
[1733116941052,20.0879,230.25,230.21,23.776884]
[1733116941348,19.4549,230.3,230.23,23.776884]
[1733116941723,19.4549,230.3,230.22,23.776884]
[1733116941943,19.4549,230.3,230.21,23.776884]
[1733116943245,19.4549,230.3,230.23,23.776884]
[1733116944342,19.4549,230.3,230.21,23.776884]
[1733116945452,19.4549,230.3,230.21,20.0]
[1733116946032,19.4549,230.3,230.2,20.0]
[1733116946337,19.4549,230.3,230.21,16.23125701]
[1733116946636,19.4549,230.3,230.22,23.776884]
[1733116946835,19.4549,230.3,230.24,23.776884]
[1733116948152,19.4549,230.3,230.25,0.86628757]
[1733116948454,19.4549,230.3,230.26,23.776884]
[1733116949636,19.4549,230.3,230.22,23.776884]
[1733116949934,19.4549,230.3,230.25,20.0]
[1733116950134,19.4549,230.3,230.26,23.776884]
[1733116954854,19.4549,230.3,230.15,16.23125701]
[1733116955269,19.4549,230.3,230.14,17.0978049]
[1733116956336,19.4549,230.3,230.17,20.0]
[1733116956541,19.4549,230.3,230.16,16.23125701]
[1733116957361,19.4549,230.3,230.17,23.776884]
[1733116958055,19.4549,230.3,230.2,16.23125701]
[1733116958263,19.4549,230.3,230.21,23.776884]
[1733116958460,19.4549,230.3,230.21,40.00814101]
[1733116960245,19.4549,230.3,230.22,16.23125701]
[1733116960548,19.4549,230.3,230.23,23.776884]
[1733116961267,19.4549,230.3,230.2,23.776884]
[1733116961468,19.4549,230.3,230.19,16.23125701]
[1733116961469,19.4549,230.3,230.19,23.776884]
[1733116962064,19.4549,230.3,230.18,23.776884]
[1733116962457,20.0,230.27,230.16,16.23125701]
[1733116963665,20.0,230.27,230.17,16.23125701]
[1733116964257,20.0,230.27,230.18,23.776884]
[1733116966276,19.4549,230.3,230.18,23.776884]
[1733116966468,20.0,230.27,230.18,23.776884]
[1733116966975,19.4549,230.3,230.18,23.776884]
[1733116967269,20.0,230.27,230.18,23.776884]
[1733116967474,20.0,230.27,230.17,23.776884]
[1733116967945,20.0,230.27,230.16,23.776884]
[1733116968152,20.0,230.27,230.15,23.776884]
[1733116968472,20.0,230.27,230.15,40.00814101]
[1733116969269,20.0,230.27,230.16,1.22962668]
[1733116969562,20.0,230.27,230.08,8.2549]
[1733116969563,20.7524,230.24,230.11,16.23125701]
[1733116969871,20.7524,230.24,230.1,16.23125701]
[1733116970047,20.7524,230.24,230.11,0.86676172]
[1733116970867,20.7524,230.24,230.12,23.776884]
[1733116971566,20.7524,230.24,230.12,40.00814101]
[1733116971765,20.7524,230.24,230.12,40.87485468]
[1733116971966,20.7524,230.24,230.12,40.00814101]